Cogmind - Beta 13 @@@ ROGUE MODE // 2024.04.22 @ 18:07:13 Player: H3-RMN Result: Destroyed by P-70 Sage with Tesla Rifle Performance ------------- Evolutions (6) 3000 Regions Visited (20) 4000 Robots Destroyed (293) 1465 Value Destroyed (11153) 11153 Prototype IDs (57) 1140 Alien Tech Used (1) 200 Bonus (2469) 2469 TOTAL SCORE: 23427 Bonus ------- High Alert Combat Kills 952 Follower Combat Kills 886 Network Hubs Disabled 800 Met Data Miner 300 Met Imprinter 300 Friendly Fire -769 Cogmind --------- Core Integrity 0/1150 Matter 680/700 Energy 53/100 System Corruption 45% Temperature Cool (0) Movement Walking (120) Location -4/Factory Parts ------- > --- POWER (3) -------- (None) > --- PROPULSION (4) --- Flexi-carbon Leg Myomer Leg Myomer Leg > --- UTILITY (11) ----- Large Storage Unit Advanced Matter Compressor Machine Analyzer Experimental Signal Interpreter 0b10 Decoder Chip [Scout] Improved Hacking Suite Experimental System Shield > --- WEAPON (3) ------- Force Lance > --- INVENTORY (15) --- Quantum Reactor Improved Heavy Treads Flexi-carbon Leg Flexi-carbon Leg Flexi-carbon Leg Myomer Leg Advanced Matter Compressor (308) Advanced Hacking Suite Experimental System Shield Authchip [Device] Authchip [Processor] Authchip [Processor] Improved Field Recycling Unit (200) Hacking Drone Bay (1/1) Peak State ------------ > --- POWER ------------ Micro Fission Core Light Antimatter Reactor Light Antimatter Reactor > --- PROPULSION ------- Flexi-carbon Leg Flexi-carbon Leg Flexi-carbon Leg Flexi-carbon Leg > --- UTILITY ---------- Large Storage Unit Advanced Matter Compressor Machine Analyzer Experimental Signal Interpreter 0b10 Decoder Chip [Scout] Advanced Melee Analysis Suite Centrium Medium Armor Plating Centrium Medium Armor Plating Improved Hacking Suite Experimental System Shield Authchip [Weapon] > --- WEAPON ----------- KE Penetrator Heavy Proton Missile Launcher Force Lance > --- INVENTORY -------- Quantum Reactor Improved Heavy Treads Advanced Matter Compressor Advanced Hacking Suite Experimental System Shield Authchip [Device] Authchip [Processor] Authchip [Processor] Improved Field Recycling Unit Hacking Drone Bay HERF Cannon Power Sword [Rating: 133] Favorites ----------- Power Cooled Ion Engine Engine Cooled Ion Engine Power Core Micro Fission Core Reactor Light Antimatter Reactor Propulsion Wheel Treads Light Treads Leg Cargo Legs Wheel Wheel Hover Unit Gravmag System Flight Unit Improved Cesium-ion Thruster Utility Machine Analyzer Device Advanced Weight Redist. System Storage Large Storage Unit Processor Machine Analyzer Hackware Experimental System Shield Protection Makeshift Light Armor Plating Weapon Makeshift Spear Energy Gun High-powered Field Laser Energy Cannon Beam Cannon Ballistic Gun Light Assault Rifle Launcher Advanced EMP Blaster Special Weapon Mining Laser Impact Weapon Thunder Hammer Slashing Weapon Makeshift Axe Piercing Weapon Makeshift Spear Special Melee Weapon Datajack Build | -11 -10 -10 -10 -8 -7 -7 -7 -7 -6 -6 -6 -6 -6 -5 -5 -5 -5 -5 -5 -4 ------- Run | Yrd Mat Min Sub Mat Fac Low Low Zio Pro Fac Low Low Dat Pro Fac Ext Cet Arc Hub Fac Slots Evolved 12 | . . . . 4 2 . . . . 2 . . . . 2 . . . . 2 Power 1 | . . . . 1 . . . . . . . . . . . . . . . . Propulsion 2 | . . . . 2 . . . . . . . . . . . . . . . . Utility 8 | . . . . . 2 . . . . 2 . . . . 2 . . . . 2 Weapon 1 | . . . . 1 . . . . . . . . . . . . . . . . Parts Attached 497 | 8 20 1 55 54 22 4 2 11 7 30 25 17 2 23 49 35 9 35 10 78 Power 54 | 1 3 . 3 4 1 1 . . 3 1 4 1 . 2 7 3 1 6 2 11 Engine 28 | 1 3 . 3 4 1 1 . . 1 1 3 1 . 1 3 1 . 2 1 1 Core 15 | . . . . . . . . . 2 . 1 . . . 3 2 . 1 1 5 Reactor 11 | . . . . . . . . . . . . . . 1 1 . 1 3 . 5 Propulsion 112 | 3 6 . 22 9 . . . . . 2 8 4 . 3 12 9 . 11 4 19 Treads 27 | 1 3 . 5 4 . . . . . . . 4 . . 1 5 . 4 . . Leg 25 | . . . . 2 . . . . . 2 2 . . . 1 . . . . 18 Wheel 27 | 2 3 . 17 3 . . . . . . 2 . . . . . . . . . Hover 28 | . . . . . . . . . . . . . . 2 10 4 . 7 4 1 Flight 5 | . . . . . . . . . . . 4 . . 1 . . . . . . Utility 183 | 2 5 . 2 5 18 3 2 6 2 25 8 5 . 10 18 17 6 13 1 35 Device 91 | 1 2 . . . 10 3 1 4 2 13 5 2 . 3 11 11 3 5 . 15 Storage 14 | 1 3 . 1 2 . . . . . 1 . . . 1 1 . . 2 . 2 Processor 14 | . . . . . 2 . . 2 . 1 . 1 . 1 2 1 . . . 4 Hackware 12 | . . . . 2 1 . . . . 1 . 1 . . 1 . . 4 . 2 Protection 52 | . . . 1 1 5 . 1 . . 9 3 1 . 5 3 5 3 2 1 12 Artifact . | . . . . . . . . . . . . . . . . . . . . . Weapon 148 | 2 6 1 28 36 3 . . 5 2 2 5 7 2 8 12 6 2 5 3 13 Energy Gun 7 | 1 . . . 5 . . . . . . 1 . . . . . . . . . Energy Cannon 13 | . 1 . 7 1 . . . . . . . . . 1 . 1 . . . 2 Ballistic Gun 46 | 1 5 . 13 14 . . . . . 1 1 . . . . 2 1 2 2 4 Ballistic Cannon . | . . . . . . . . . . . . . . . . . . . . . Launcher 26 | . . 1 4 3 . . . 1 . . . 4 . 3 4 2 1 . 1 2 Special Weapon 1 | . . . 1 . . . . . . . . . . . . . . . . . Impact Weapon 5 | . . . . . . . . . . . . 2 1 1 1 . . . . . Slashing Weapon 24 | . . . 3 4 1 . . 2 . 1 2 1 . 1 3 1 . 1 . 4 Piercing Weapon 11 | . . . . 3 1 . . 1 1 . . . . 2 2 . . . . 1 Special Melee Weapon 15 | . . . . 6 1 . . 1 1 . 1 . 1 . 2 . . 2 . . Unidentified Prototypes 19 | . . . . 3 . . . 2 . 1 1 . . 3 6 . 2 . . 1 Corrupted Parts 8 | . . . . . . . . . . . . . . 1 . . . . . 7 System Corruption 44 | . . . . . . . . . . . . . . 1 . . . . . 43 Parts Lost 103 | . 6 . 3 4 5 . . . 2 2 8 8 . 8 4 8 2 . 11 32 Power 25 | . 2 . 1 . 1 . . . 2 1 2 3 . 2 1 1 1 . 1 7 Propulsion 36 | . 2 . 1 2 . . . . . 1 4 4 . 3 3 3 . . 4 9 Utility 25 | . . . . . 4 . . . . . 2 1 . 1 . 2 1 . 3 11 Weapon 17 | . 2 . 1 2 . . . . . . . . . 2 . 2 . . 3 5 Highest Loss Streak 8 | . 2 . 1 1 2 . . . 1 1 5 4 . 5 1 2 2 . 5 8 To Critical Strikes 3 | . . . 1 . . . . . . . . . . 1 . 1 . . . . Average Slot Usage (%) 84 | . 99 100 87 81 84 80 86 85 85 91 75 87 74 65 81 82 96 89 83 87 Engine 9 | . 14 14 14 14 11 6 13 13 7 1 . 9 5 9 . . 5 1 4 . Core 1 | . . . . . . . . . 4 10 3 3 . . 2 7 5 1 . 4 Treads 4 | . 13 14 2 7 . . . . . . . 8 17 . . 3 21 11 . . Leg 4 | . . . . 3 12 13 13 13 13 17 5 5 . . . . . . . 13 Wheel 9 | . 13 14 25 18 . . . . . . 2 1 . . . . . . . . Hover 1 | . . . . . . . . . . . . . . . 12 9 . 7 19 3 Device 5 | . 14 14 1 . 12 13 12 11 6 6 5 3 5 . 2 5 10 7 5 9 Storage 8 | . 14 14 13 8 6 6 6 6 6 5 5 5 5 5 6 5 5 4 5 5 Processor 8 | . . . . . 6 13 13 14 20 16 11 11 11 15 22 25 15 13 10 16 Hackware 5 | . . . . 3 7 6 6 6 6 6 11 11 11 11 10 6 5 11 23 7 Protection 2 | . . . . 1 5 . . . . 4 5 4 5 4 . 3 8 6 1 4 Energy Cannon 3 | . 3 14 13 3 . . . . . . . . . . . . . . . . Ballistic Gun 5 | . 23 3 8 14 . . . . . . 1 . . . . 1 9 6 3 1 Launcher 1 | . . 10 2 . . . . . . . . 1 . 4 . . 4 2 . . Slashing Weapon 5 | . . . 2 1 12 13 13 12 13 11 7 8 5 4 7 9 . 1 4 3 Piercing Weapon 2 | . . . . . 5 6 6 5 5 5 5 3 . . 4 . . . . 3 Naked Turns . | . . . . . . . . . . . . . . . . . . . . . Heaviest Build 227 | 14 90 92 217 227 122 107 103 112 110 110 56 64 44 60 61 78 94 118 41 94 Greatest Support 119 | 16 20 10 30 110 119 119 119 119 110 110 90 76 76 76 51 109 109 114 42 89 Greatest Overweight (x) 21 | 1 8 9 21 10 1 . . 1 . . 17 5 . 19 4 2 . 20 1 2 Average Overweight (x) 3 | . 6 8 8 4 . . . . . . 4 2 . 11 . . . . . . Largest Inventory Capacity 35 | 8 25 25 35 35 25 25 25 25 25 25 15 15 15 15 15 15 15 15 15 15 Average Capacity 23 | 6 22 25 33 32 25 25 25 25 25 15 15 15 15 15 15 15 15 13 15 15 Most Carried 35 | 7 25 25 35 35 25 25 25 25 25 25 15 15 15 15 15 15 15 15 15 15 Average Carried 22 | 3 20 25 32 31 23 24 25 24 24 15 14 14 14 14 14 14 14 12 14 14 Final Capacity 35 | 8 25 25 35 25 25 25 25 25 25 15 15 15 15 15 15 15 15 15 15 15 Final Carried 35 | 7 25 25 35 25 25 25 25 25 25 15 15 15 15 15 15 15 15 15 15 15 Class Distribution -------------------- 18% | Hauler-Mutant 17% | Mutant 12% | Hacker-Gladiator 9% | Gladiator 7% | Hacker-Mutant 7% | Hauler-Gunner 6% | Hacker-Assassin 5% | Derelict-Assassin 3% | Scavenger-Gladiator Dominant Class ---------------- Mutant | -10/Materials Mutant | -10/Mines Hauler-Mutant | -10/Subcaves Hauler-Gunner | -8/Materials Mutant | -7/Factory Assassin | -7/Lower Caves Derelict-Assassin | -7/Lower Caves Derelict-Assassin | -7/Zion Gladiator | -6/Proximity Caves Gladiator | -6/Factory Hacker-Assassin | -6/Lower Caves Hacker-Assassin | -6/Lower Caves Hacker-Gladiator | -6/Data Miner Hacker-Gladiator | -5/Proximity Caves Derelict-Gladiator | -5/Factory Commander-Gladiator | -5/Extension Scavenger-Tank | -5/Cetus Scavenger-Tank | -5/Archives Hacker-Mutant | -5/Hub_04(d) Scavenger-Gladiator | -4/Factory Resources | -11 -10 -10 -10 -8 -7 -7 -7 -7 -6 -6 -6 -6 -6 -5 -5 -5 -5 -5 -5 -4 ----------- Run | Yrd Mat Min Sub Mat Fac Low Low Zio Pro Fac Low Low Dat Pro Fac Ext Cet Arc Hub Fac Matter Collected 8450 | 378 572 40 805 1195 198 50 48 80 83 186 420 234 . 404 602 310 206 817 110 1712 Remotely 250 | . . . . . . . . . . 25 . . . 79 . . 146 . . . Salvage Created 13940 | 168 979 61 620 1355 777 120 69 . 135 304 653 363 . 395 1167 1815 265 817 397 3480 Parts 682 | 8 55 5 41 100 43 3 2 . 3 13 15 13 . 19 55 70 11 60 11 155 Haulers Intercepted 13 | . 2 . . 1 1 . . . . . . . . . 3 4 . . . 2 Recyclers Shooed 2 | . . . . 1 . . . . . 1 . . . . . . . . . . Parts Field Recycled 44 | . . . . . 8 5 . 11 . . . . . . 6 6 . 8 . . Retrieved Matter 703 | . . . . . 154 50 . 76 . . . . . . 144 85 . 194 . . Parts Self-Destructed 56 | . . . 16 . . . 3 . 5 . 14 2 . 16 . . . . . . Prevented 11 | . . . . . . . . . . . . 9 . 2 . . . . . . Kills | -11 -10 -10 -10 -8 -7 -7 -7 -7 -6 -6 -6 -6 -6 -5 -5 -5 -5 -5 -5 -4 ------- Run | Yrd Mat Min Sub Mat Fac Low Low Zio Pro Fac Low Low Dat Pro Fac Ext Cet Arc Hub Fac Combat Hostiles Destroyed 216 | . 19 2 18 35 12 . 1 . 2 2 5 11 . 16 15 19 3 4 4 48 Melee 67 | . . . 1 3 12 . 1 . 1 1 4 1 . . 8 10 . . 1 24 Guns 60 | . 15 . 3 26 . . . . . . 1 . . . . . 3 4 1 7 Cannons 13 | . 4 1 3 4 . . . . . . . . . . . . . . . 1 AOE 62 | . . 1 11 2 . . . . . 1 . 7 . 16 7 9 . . 2 6 Classes Destroyed 24 | 3 5 . 4 1 2 1 2 . 1 1 . . . 2 . 1 . . . 1 Worker 14 | 1 1 . . . 2 . . . . 2 . . . . 4 3 . . . 1 Builder 6 | . . . . . . . . . . 1 . . . . 1 2 . . . 2 Tunneler 5 | 2 1 . . 2 . . . . . . . . . . . . . . . . Hauler 13 | . 2 . . 1 1 . . . . . . . . . 3 4 . . . 2 Recycler 13 | 1 1 . . . . . . . . 1 . . . . 1 5 . . 2 2 Minesweeper 2 | . . . . . . . . . 1 . . . . 1 . . . . . . Mechanic 2 | . . . . . 1 . . . . . . . . . . 1 . . . . Operator 12 | . 1 . . 1 . . . . . . . . . . . . . 9 1 . Drone 2 | . . . . . . . . . . . . . . 2 . . . . . . Watcher 12 | . 2 . . 4 . . . . . 1 . . . . 2 1 1 . . 1 Swarmer 65 | . 3 . 5 10 . . . . . . 2 7 . 9 7 9 . . 4 9 Cutter 2 | . . . . . . . . . . . . . . . . . . . . 2 Grunt 80 | . 16 2 2 15 5 . . . 1 1 1 3 . 3 2 4 . . . 25 Brawler 2 | . . . . . . . . . . . . . . 1 . 1 . . . . Duelist 5 | . . . . 3 . . . . . . . . . . . . . . . 2 Sentry 23 | . . . 1 7 4 . . . . . . 1 . 1 . 3 . 4 . 2 Demolisher 1 | . . . . . . . . . . . . . . . . 1 . . . . Hunter 11 | . . . . . . . 1 . 1 . 2 . . . 2 1 . . . 4 Programmer 12 | . . . . . 3 . . . . 1 . . . . 4 . . . . 4 Cetus Guard 3 | . . . . . . . . . . . . . . . . . 3 . . . Artisan 2 | . . . 2 . . . . . . . . . . . . . . . . . Cobbler 2 | . . . 2 . . . . . . . . . . . . . . . . . Subdweller 12 | . . . 12 . . . . . . . . . . . . . . . . . Decomposer 1 | . . . . . . . . . . . . . . 1 . . . . . . Packrat 1 | . . . . . . . . . . . 1 . . . . . . . . . Samaritan 1 | . . . . . . 1 . . . . . . . . . . . . . . Tinkerer 2 | . . . . . . . 1 . 1 . . . . . . . . . . . Thug 1 | . . . . . . . . . . . . . . . . . . 1 . . Best Kill Streak 16 | 3 3 2 3 5 2 . 1 . 1 2 3 4 . 5 7 16 4 3 3 10 Combat Bots Only 11 | . 3 2 3 5 2 . 1 . 1 1 3 4 . 5 5 11 3 3 3 8 Max Kills in Single Turn 11 | 1 1 1 2 1 1 1 1 . 1 1 1 2 . 3 6 11 1 1 2 2 Gunslinging . | . . . . . . . . . . . . . . . . . . . . . Exploded 9 | . . 1 2 1 . . . . . 1 . 2 . 3 5 9 . . 2 2 Melee 1 | . . . 1 1 1 . 1 . 1 1 1 1 . . 1 1 . . 1 1 Uniques/NPCs Destroyed . | . . . . . . . . . . . . . . . . . . . . . Combat | -11 -10 -10 -10 -8 -7 -7 -7 -7 -6 -6 -6 -6 -6 -5 -5 -5 -5 -5 -5 -4 -------- Run | Yrd Mat Min Sub Mat Fac Low Low Zio Pro Fac Low Low Dat Pro Fac Ext Cet Arc Hub Fac Hostile Shots Fired 1647 | . 101 6 56 124 239 . 17 . 23 42 74 105 . 57 88 83 18 23 73 518 Missed 473 | . 17 3 21 33 76 . 5 . 12 13 10 40 . 16 29 22 6 7 27 136 Damage Taken 19137 | . 979 62 671 1331 1330 . 175 . 231 732 1050 780 . 927 1125 1553 265 260 1196 6470 Core 2929 | . 171 7 41 142 181 . 34 . 94 35 248 94 . 71 220 229 39 . 172 1151 Absorbed by Shields 1049 | . . . . . 229 . . . . . 100 . . . . . 88 96 . 536 Redirected to Shielding 153 | . . . . . . . . . . . 151 . . . . . . . . 2 Ignored by Resistances 312 | . . . . . . . . . . . . . . . . . . 45 . 267 Regen/Repaired (Parts) 1380 | . 414 . . 425 . . . . . . . . . . 131 97 . . . 313 Core Remaining (%) 53 | 100 . . 12 74 . . . . 55 . . . . 47 . . . . 34 . Volleys Fired 604 | 7 100 3 116 88 . . . . . 18 8 16 . 25 9 1 19 114 8 72 Largest 3 | 2 2 2 2 3 . . . . . 1 2 1 . 1 1 1 2 2 1 1 Hottest 116 | 70 80 90 110 116 . . . . . 33 102 39 . 39 45 45 58 70 40 88 Shots Fired 921 | 14 200 6 153 232 . . . . . 18 10 16 . 25 9 1 30 128 8 71 Gun 674 | 14 178 . 63 190 . . . . . 18 10 . . . . . 25 126 7 43 Cannon 124 | . 22 3 54 36 . . . . . . . . . . . . . . . 9 Launcher 102 | . . 3 15 6 . . . . . . . 16 . 25 9 1 5 2 1 19 Special 21 | . . . 21 . . . . . . . . . . . . . . . . . Kinetic 625 | 7 156 . 63 173 . . . . . 18 7 . . . . . 25 126 7 43 Thermal 185 | 7 44 3 75 53 . . . . . . 3 . . . . . . . . . Explosive 50 | . . 3 15 6 . . . . . . . 6 . 18 1 1 . . . . Electromagnetic 61 | . . . . . . . . . . . . 10 . 7 8 . 5 2 1 28 Robot Hit Streak 18 | 6 17 13 14 18 . . . . . 2 4 6 . 11 1 3 7 12 1 9 Robot Miss Streak 9 | 2 4 1 3 9 . . . . . 3 2 2 . 1 2 1 2 5 2 3 Penetration Max 1 | . . . . . . . . . . 1 . . . . . . . 1 . . Secondary Targets 3 | . 1 . . 2 . . . . . . . . . . . . . . . . Max Gunslinging Chain 1 | . 1 . . 1 . . . . . . . . . . . . . . . . Shots Hit Robots 910 | 7 147 4 60 144 64 2 8 1 22 26 30 18 1 17 54 63 19 82 5 136 Core Hits 506 | 5 54 4 35 83 22 2 2 . 3 12 12 14 . 27 33 44 18 40 8 88 Critical Kills 18 | . 1 . . 1 . . . . . 1 . . . . . . 1 11 1 2 Critical Parts Destroyed 26 | . 2 . . . . . . . . 3 2 . . . . . 1 18 . . Critical Strikes 96 | 2 6 . . 2 4 . 1 . 4 8 3 1 . . 4 9 2 30 1 19 Burn 5 | 2 3 . . . . . . . . . . . . . . . . . . . Destroy 45 | . 3 . . 1 . . . . . 4 2 . . . . . 2 30 1 2 Sever 31 | . . . . . 4 . 1 . 3 4 1 1 . . 2 9 . . . 6 Impale 15 | . . . . 1 . . . . 1 . . . . . 2 . . . . 11 Melee Attacks 572 | . . . 14 32 91 3 10 1 30 40 43 8 1 3 79 71 . . 15 131 Impact 14 | . . . . . . . . . . . . . . . 2 12 . . . . Slashing 350 | . . . 14 12 78 3 8 . 22 20 35 7 . 2 39 59 . . 15 36 Piercing 194 | . . . . 14 11 . 2 . 7 20 8 1 . 1 35 . . . . 95 Sneak Attacks 77 | . . . 5 8 6 1 2 1 5 6 2 . 1 2 14 18 . . 1 5 Combat Hostiles 4 | . . . . . 1 . . . 1 . . . . . 1 1 . . . . Follow-up Attacks 75 | . . . . 3 16 . 1 . 4 3 7 2 . . 11 8 . . . 20 Damage Inflicted 32215 | 77 1670 136 2111 3256 2338 116 361 . 905 834 1175 1212 . 1718 2903 4175 634 971 676 6947 Guns 5712 | 77 1286 . 292 1992 . . . . . 72 58 . . . . . 212 859 57 807 Cannons 1188 | . 384 54 401 195 . . . . . . . . . . . . . . . 154 Explosions 8794 | . . 82 1079 636 . . . . . . . 965 . 1531 655 742 422 112 452 2118 Melee 16521 | . . . 339 433 2338 116 361 . 905 762 1117 247 . 187 2248 3433 . . 167 3868 Ramming . | . . . . . . . . . . . . . . . . . . . . . Kinetic 5313 | 16 1055 . 292 1924 . . . . . 72 19 . . . . . 212 859 57 807 Thermal 1666 | 61 615 54 401 263 . . . . . . 39 . . . 85 . . . . 148 Explosive 4554 | . . 82 1079 636 . . . . . . . 436 . 1269 310 742 . . . . Electromagnetic 4161 | . . . . . . . . . . . . 529 . 262 260 . 422 112 452 2124 Impact 1040 | . . . . . . . . . . . . . . . 229 811 . . . . Slashing 10412 | . . . 339 195 2167 116 334 . 590 402 1005 220 . 118 1227 2622 . . 167 910 Piercing 5069 | . . . . 238 171 . 27 . 315 360 112 27 . 69 792 . . . . 2958 Highest Corruption 45 | . . . . . 6 5 5 5 2 2 2 1 1 2 7 3 1 1 6 45 Average Corruption 2 | . . . . . 4 5 5 5 1 2 1 1 1 1 4 1 1 1 3 8 Corruption Purged 15 | . . . . . 2 . . . . . 2 . . . 5 2 . 1 . 3 Corruption Blocked . | . . . . . . . . . . . . . . . . . . . . . Effects 135 | . . . . . 20 22 5 2 1 2 . 3 1 23 24 5 1 3 2 21 Message Errors 35 | . . . . . 5 9 1 1 . 2 . . . 6 6 1 . . 1 3 Matter Fused 33 | . . . . . 1 5 2 . 1 . . 3 1 6 7 . 1 . . 6 Heat Flow Errors 22 | . . . . . 6 3 . . . . . . . 2 4 2 . 1 1 3 Energy Discharges 22 | . . . . . 5 . 2 . . . . . . 4 4 1 . 1 . 5 Parts Fused 1 | . . . . . . . . . . . . . . 1 . . . . . . Data Loss (minor) 11 | . . . . . 1 2 . 1 . . . . . 1 2 1 . 1 . 2 Data Loss (major) 6 | . . . . . 1 3 . . . . . . . . 1 . . . . 1 Alerts 4 | . . . . . 1 . . . . . . . . 3 . . . . . . Weapon Failures 1 | . . . . . . . . . . . . . . . . . . . . 1 Overload Shots . | . . . . . . . . . . . . . . . . . . . . . Overflow Damage 2396 | . 4 . 30 1 108 . 94 . 289 55 180 28 . 53 529 633 31 2 105 254 Projectiles 10 | . 4 . 6 . . . . . . . . . . . . . . . . . Explosions 250 | . . . . 1 . . . . . . . 28 . 53 46 15 31 2 30 44 Melee 2136 | . . . 24 . 108 . 94 . 289 55 180 . . . 483 618 . . 75 210 Knockbacks 4 | . . . . . . . . . . . . . . . 1 3 . . . . Impact 4 | . . . . . . . . . . . . . . . 1 3 . . . . Kinetic . | . . . . . . . . . . . . . . . . . . . . . Secondary . | . . . . . . . . . . . . . . . . . . . . . Self-Inflicted Damage 478 | . . 23 58 19 . . . . . . . 67 . 122 29 . . . 130 30 Shots 19 | . . 1 4 1 . . . . . . . 4 . 3 1 . . . 2 3 Rammed . | . . . . . . . . . . . . . . . . . . . . . Targets Rammed . | . . . . . . . . . . . . . . . . . . . . . Kicked . | . . . . . . . . . . . . . . . . . . . . . Crushed . | . . . . . . . . . . . . . . . . . . . . . Highest Temperature 406 | 20 215 69 12 207 270 273 . 406 . 36 2 105 . 231 273 266 46 362 163 382 Average Temperature 70 | 15 50 42 5 40 112 134 . 192 . 16 2 30 . 47 68 123 13 117 100 101 Received Heat Transfer 3984 | . 471 24 99 666 371 . 45 . 63 240 90 177 . 99 54 288 . 30 99 1168 Effects 4 | . . . . . . . . 1 . . . . . . . 1 . . . 2 Shutdowns 2 | . . . . . . . . 1 . . . . . . . . . . . 1 Energy Bleed 1 | . . . . . . . . . . . . . . . . 1 . . . . Short Circuit 1 | . . . . . . . . . . . . . . . . . . . . 1 Siege Activations . | . . . . . . . . . . . . . . . . . . . . . Robots Corrupted 14 | . . . . . . . . . . . . 3 . . . . . . 1 10 Combat Hostiles 13 | . . . . . . . . . . . . 3 . . . . . . . 10 Parts Fried 39 | . . . . . . . . . . . . 5 . . 6 3 2 . 3 20 Impact Corruptions 9 | . . . . . . . . . . . . . . . 3 6 . . . . Robots Melted . | . . . . . . . . . . . . . . . . . . . . . Combat Hostiles . | . . . . . . . . . . . . . . . . . . . . . Parts Melted 6 | 1 2 . . . . . . . . . . . . . . 1 . . . 2 Heat Transferred 3778 | 333 1665 111 777 518 . . . . . . 74 . . . 50 . . . . 250 Parts Sabotaged . | . . . . . . . . . . . . . . . . . . . . . Parts Stolen . | . . . . . . . . . . . . . . . . . . . . . Parts Stripped . | . . . . . . . . . . . . . . . . . . . . . Power Chain Reactions 5 | . . . . . . . . . . . . . . 1 . . . . . 4 Alert | -11 -10 -10 -10 -8 -7 -7 -7 -7 -6 -6 -6 -6 -6 -5 -5 -5 -5 -5 -5 -4 ------- Run | Yrd Mat Min Sub Mat Fac Low Low Zio Pro Fac Low Low Dat Pro Fac Ext Cet Arc Hub Fac Peak Influence 1025 | 20 174 70 . 577 377 . . . . 261 . . . . 669 501 277 302 615 1025 Initial 277 | . 13 36 . 66 262 . . . . . . . . . 22 277 183 110 . 119 Average 195 | 7 75 22 . 218 241 . . . . 48 . . . . 129 371 240 111 173 536 Maximum Alert Level 3 | . . . . 2 1 . . . . 1 . . . . 2 2 1 1 2 3 Low Security (%) 60 | 100 100 100 . 58 32 . . . . 88 . . . . 68 2 12 74 53 4 Level 1 21 | . . . . 8 67 . . . . 11 . . . . 24 56 87 25 38 23 Level 2 17 | . . . . 33 . . . . . . . . . . 6 40 . . 8 55 Level 3 1 | . . . . . . . . . . . . . . . . . . . . 16 Level 4 . | . . . . . . . . . . . . . . . . . . . . . Level 5 . | . . . . . . . . . . . . . . . . . . . . . High Security . | . . . . . . . . . . . . . . . . . . . . . Max Security . | . . . . . . . . . . . . . . . . . . . . . Squads Dispatched 48 | . 7 . . 4 7 . . . . 4 . . . . 7 1 . . 6 12 Investigation 18 | . 5 . . 3 4 . . . . 1 . . . . 2 . . . 3 . Extermination 10 | . . . . . 3 . . . . 1 . . . . 3 . . . . 3 Reinforcement 12 | . 2 . . . . . . . . . . . . . 1 . . . 2 7 Assault 7 | . . . . 1 . . . . . 1 . . . . 1 1 . . 1 2 Garrison 1 | . . . . . . . . . . 1 . . . . . . . . . . Intercept . | . . . . . . . . . . . . . . . . . . . . . Searches Triggered 1 | . . . . . . . . . . . . . . . . . . . 1 . Construction Impeded 2 | . . . . . . . . . . . . . . . . . . . . 2 Haulers Reinforced 4 | . . . . . . . . . . . . . . . . . . . . 4 Active Scanning Responses . | . . . . . . . . . . . . . . . . . . . . . Cargo Convoy Interrupts . | . . . . . . . . . . . . . . . . . . . . . Stealth | -11 -10 -10 -10 -8 -7 -7 -7 -7 -6 -6 -6 -6 -6 -5 -5 -5 -5 -5 -5 -4 --------- Run | Yrd Mat Min Sub Mat Fac Low Low Zio Pro Fac Low Low Dat Pro Fac Ext Cet Arc Hub Fac Distress Signals 13 | . . . . 5 . . . . . . . . . . 1 1 1 . 1 4 Communications Jammed 102 | . . . . . . . . . . . . . . . . . . . 40 62 Distress Signals 102 | . . . . . . . . . . . . . . . . . . . 40 62 Times Spotted 397 | . 31 2 23 56 28 . 4 . 9 8 5 11 . 15 31 36 4 33 35 66 Peak Tracking Total 18 | . 4 2 3 5 5 . 3 . 3 3 3 4 . 5 7 9 5 1 18 8 Tactical Retreats 31 | . . . 3 3 7 . . . . 4 . . . . 4 1 1 . 4 4 Traps | -11 -10 -10 -10 -8 -7 -7 -7 -7 -6 -6 -6 -6 -6 -5 -5 -5 -5 -5 -5 -4 ------- Run | Yrd Mat Min Sub Mat Fac Low Low Zio Pro Fac Low Low Dat Pro Fac Ext Cet Arc Hub Fac Traps Triggered 14 | . 3 . 1 . 2 . . . . 1 . . . . 1 1 . . 1 4 Indirectly 5 | . . . . . . . . . . . . . . . . . . . 1 4 Trap Hack Attempts 34 | . . . . 13 . . . . . . . . . . 21 . . . . . Triggered . | . . . . . . . . . . . . . . . . . . . . . Disarmed 1 | . . . . . . . . . . . . . . . 1 . . . . . Reprogrammed 9 | . . . . 1 . . . . . . . . . . 2 . . . 6 . Reused 8 | . . . . 2 . . . . . . . . . . . . . . 6 . Traps Extracted . | . . . . . . . . . . . . . . . . . . . . . Installed 4 | . . . 1 3 . . . . . . . . . . . . . . . . Triggered 14 | . . . . 2 . . . . 1 . 3 1 . . . 1 . . 6 . Most Traps Carried 3 | . . . 3 3 . . . . . . . . . . . . . . . . Machines | -11 -10 -10 -10 -8 -7 -7 -7 -7 -6 -6 -6 -6 -6 -5 -5 -5 -5 -5 -5 -4 ---------- Run | Yrd Mat Min Sub Mat Fac Low Low Zio Pro Fac Low Low Dat Pro Fac Ext Cet Arc Hub Fac Machines Disabled 37 | . . . 1 1 . . . . . 2 . . . . 7 2 2 3 11 8 Max in Single Turn 6 | . . . 1 1 . . . . . 1 . . . . 3 . 1 2 6 2 Garrison Access 4 | . . . . . . . . . . 1 . . . . 2 . . . 1 . Network Hub 4 | . . . . . . . . . . . . . . . . . . . 4 . Machines Repaired . | . . . . . . . . . . . . . . . . . . . . . Machines Dismantled . | . . . . . . . . . . . . . . . . . . . . . Machines Sabotaged 3 | . . . . . . . . . . . . . . . . . . . 3 . Overloaded Fab Kills . | . . . . . . . . . . . . . . . . . . . . . Hacking | -11 -10 -10 -10 -8 -7 -7 -7 -7 -6 -6 -6 -6 -6 -5 -5 -5 -5 -5 -5 -4 --------- Run | Yrd Mat Min Sub Mat Fac Low Low Zio Pro Fac Low Low Dat Pro Fac Ext Cet Arc Hub Fac Machines Accessed 63 | . 8 . 1 11 12 1 . . . 4 1 . 4 . 7 4 . . 7 3 Terminals 31 | . 5 . . 7 7 . . . . 2 . . . . 1 1 . . 7 1 Fabricators 4 | . . . . . 1 . . . . . . . . . 3 . . . . . Repair Stations 5 | . 1 . . 1 . . . . . . . . . . 1 1 . . . 1 Recycling Units 8 | . 2 . . 1 1 . . . . . . . . . 1 2 . . . 1 Scanalyzers 4 | . . . . 1 2 . . . . 1 . . . . . . . . . . Garrison Access 4 | . . . . 1 1 . . . . 1 . . . . 1 . . . . . Total Hacks 279 | . 27 . 1 55 34 1 . . . 38 1 . 30 . 21 9 . . 47 15 Successful 182 | . 15 . 1 33 18 1 . . . 30 1 . 30 . 10 5 . . 32 6 Failed 96 | . 12 . . 21 16 . . . . 8 . . . . 11 4 . . 15 9 Catastrophic 16 | . 3 . . 2 2 . . . . . . . . . 3 1 . . 1 4 Database Lockouts 1 | . . . . 1 . . . . . . . . . . . . . . . . Manual 90 | . 17 . . 19 7 . . . . 2 . . . . 5 4 . . 31 5 Terminals 131 | . 17 . . 33 23 . . . . 3 . . . . 3 1 . . 47 4 Fabricators 10 | . . . . . 2 . . . . . . . . . 8 . . . . . Repair Stations 23 | . 3 . . 8 . . . . . . . . . . 5 2 . . . 5 Recycling Units 25 | . 7 . . 2 2 . . . . . . . . . 2 6 . . . 6 Scanalyzers 49 | . . . . 10 6 . . . . 33 . . . . . . . . . . Garrison Access 8 | . . . . 2 1 . . . . 2 . . . . 3 . . . . . Terminal Hacks 80 | . 8 . 1 9 8 1 . . . 1 1 . 30 . . . . . 20 1 Record 12 | . . . . . . . . . . . . . 11 . . . . . 1 . Part Schematic 18 | . 3 . . 1 1 . . . . . . . 10 . . . . . 3 . Robot Schematic 8 | . 2 . . . . . . . . . . . 6 . . . . . . . Robot Analysis 2 | . 2 . . . . . . . . . . . . . . . . . . . Prototype ID Bank 6 | . 1 . . 1 . . . . . . . . 3 . . . . . 1 . Open Door 2 | . . . . . . 1 . . . . 1 . . . . . . . . . Open DSF 1 | . . . . . . . . . . 1 . . . . . . . . . . Level Access Points 1 | . . . . . . . . . . . . . . . . . . . 1 . Branch Access Points 3 | . . . . 1 1 . . . . . . . . . . . . . . 1 Emergency Access Points 1 | . . . . . 1 . . . . . . . . . . . . . . . Terminal Index 2 | . . . . 1 . . . . . . . . . . . . . . 1 . Alert Level 4 | . . . . 2 . . . . . . . . . . . . . . 2 . Unreport Threat 5 | . . . . 1 1 . . . . . . . . . . . . . 3 . Locate Traps 3 | . . . . . 1 . . . . . . . . . . . . . 2 . Reprogram Traps 1 | . . . . . . . . . . . . . . . . . . . 1 . Recall Investigation 2 | . . . . . 1 . . . . . . . . . . . . . 1 . Hauler Manifests 2 | . . . . 1 1 . . . . . . . . . . . . . . . Registered Components 1 | . . . . . 1 . . . . . . . . . . . . . . . Zone Layout 5 | . . . . 1 . . . . . . . . . . . . . . 4 . Derelict Proto ID Bank 1 | . . . 1 . . . . . . . . . . . . . . . . . Fabricator Hacks 3 | . . . . . 1 . . . . . . . . . 2 . . . . . Load Schematic 2 | . . . . . 1 . . . . . . . . . 1 . . . . . Build 1 | . . . . . . . . . . . . . . . 1 . . . . . Repair Station Hacks 16 | . 2 . . 8 . . . . . . . . . . 2 2 . . . 2 Scan Component 8 | . 1 . . 4 . . . . . . . . . . 1 1 . . . 1 Repair 8 | . 1 . . 4 . . . . . . . . . . 1 1 . . . 1 Recycling Unit Hacks 6 | . 2 . . . 2 . . . . . . . . . . 1 . . . 1 Report Inventory 2 | . 1 . . . 1 . . . . . . . . . . . . . . . Retrieve Components 4 | . 1 . . . 1 . . . . . . . . . . 1 . . . 1 Scanalyzer 43 | . . . . 10 4 . . . . 29 . . . . . . . . . . Insert Component 20 | . . . . 5 2 . . . . 13 . . . . . . . . . . Analyze 23 | . . . . 5 2 . . . . 16 . . . . . . . . . . Garrison Access Hacks 2 | . . . . 1 . . . . . . . . . . 1 . . . . . Unlock Access 1 | . . . . 1 . . . . . . . . . . . . . . . . Seal Access 1 | . . . . . . . . . . . . . . . 1 . . . . . Unauthorized Hacks 32 | . 3 . . 5 3 . . . . . . . . . 5 2 . . 12 2 Terminals 21 | . 2 . . 5 2 . . . . . . . . . . . . . 12 . Track 5 | . 1 . . 1 . . . . . . . . . . . . . . 3 . Assimilate 1 | . . . . . . . . . . . . . . . . . . . 1 . Botnet 6 | . . . . 3 1 . . . . . . . . . . . . . 2 . Detonate 1 | . . . . . . . . . . . . . . . . . . . 1 . Disrupt 2 | . 1 . . . . . . . . . . . . . . . . . 1 . Operators 3 | . . . . 1 1 . . . . . . . . . . . . . 1 . Sabotage 3 | . . . . . . . . . . . . . . . . . . . 3 . Fabricators 4 | . . . . . 1 . . . . . . . . . 3 . . . . . Liberate 1 | . . . . . . . . . . . . . . . 1 . . . . . Haulers 1 | . . . . . . . . . . . . . . . 1 . . . . . Download 1 | . . . . . . . . . . . . . . . 1 . . . . . Recompile 1 | . . . . . 1 . . . . . . . . . . . . . . . Repair Stations . | . . . . . . . . . . . . . . . . . . . . . Recycling Units 7 | . 1 . . . . . . . . . . . . . 2 2 . . . 2 Reject 3 | . . . . . . . . . . . . . . . 1 1 . . . 1 Mask 3 | . . . . . . . . . . . . . . . 1 1 . . . 1 Tunnel 1 | . 1 . . . . . . . . . . . . . . . . . . . Scanalyzers . | . . . . . . . . . . . . . . . . . . . . . Garrison Access . | . . . . . . . . . . . . . . . . . . . . . Data Cores Recovered 2 | . . . . 1 . . . . . . . . . . . 1 . . . . Used . | . . . . . . . . . . . . . . . . . . . . . Hacking Detections 48 | . 7 . . 11 11 . . . . 3 . . . . 6 4 . . 4 2 Full Trace Events 11 | . 3 . . 3 3 . . . . 1 . . . . 1 . . . . . Feedback Events 2 | . . . . . 1 . . . . . . . . . 1 . . . . . Corruption 1 | . . . . . . . . . . . . . . . 1 . . . . . Hackware Fried 1 | . . . . . 1 . . . . . . . . . . . . . . . Feedback Blocked . | . . . . . . . . . . . . . . . . . . . . . Robot Schematics Acquired 8 | . 2 . . . . . . . . . . . 6 . . . . . . . Robots Built . | . . . . . . . . . . . . . . . . . . . . . Authchips . | . . . . . . . . . . . . . . . . . . . . . Time . | . . . . . . . . . . . . . . . . . . . . . Total Robot Build Rating . | . . . . . . . . . . . . . . . . . . . . . Part Schematics Acquired 37 | . 3 . . 6 3 . . . . 11 . . 10 . 1 . . . 3 . Parts Built 1 | . . . . . . . . . . . . . . . 1 . . . . . Authchips 1 | . . . . . . . . . . . . . . . 1 . . . . . Time 84 | . . . . . . . . . . . . . . . 84 . . . . . Total Part Build Rating 6 | . . . . . . . . . . . . . . . 6 . . . . . Parts Repaired 8 | . 1 . . 4 . . . . . . . . . . 1 1 . . . 1 Time 291 | . 13 . . 167 . . . . . . . . . . 25 50 . . . 36 Parts Recycled . | . . . . . . . . . . . . . . . . . . . . . Recycled Matter . | . . . . . . . . . . . . . . . . . . . . . Retrieved Matter . | . . . . . . . . . . . . . . . . . . . . . Retrieved Components 21 | . 7 . . . 3 . . . . . . . . . . 10 . . . 1 Parts Scanalyzed 19 | . . . . 5 2 . . . . 12 . . . . . . . . . . Part Schematics Acquired 18 | . . . . 5 2 . . . . 11 . . . . . . . . . . Parts Damaged 3 | . . . . 1 1 . . . . 1 . . . . . . . . . . Bothacking | -11 -10 -10 -10 -8 -7 -7 -7 -7 -6 -6 -6 -6 -6 -5 -5 -5 -5 -5 -5 -4 ------------ Run | Yrd Mat Min Sub Mat Fac Low Low Zio Pro Fac Low Low Dat Pro Fac Ext Cet Arc Hub Fac Used RIF Installer . | . . . . . . . . . . . . . . . . . . . . . Robots Hacked 9 | . . . . 4 1 . . 1 . . . . 1 . 2 . . . . . Non-combat 7 | . . . . 4 1 . . . . . . . . . 2 . . . . . Combat 2 | . . . . . . . . 1 . . . . 1 . . . . . . . Robot Hacks Applied 10 | . . . . 5 1 . . 1 . . . . 1 . 2 . . . . . parse_system 4 | . . . . 1 1 . . 1 . . . . 1 . . . . . . . find_chute 1 | . . . . . . . . . . . . . . . 1 . . . . . find_recycling 5 | . . . . 4 . . . . . . . . . . 1 . . . . . Relay Couplers Released 6 | . . . . . . . . . . 2 . . . . 2 . . . 2 . Machine Destruction 6 | . . . . . . . . . . 2 . . . . 2 . . . 2 . Fabnet Peak Effective % . | . . . . . . . . . . . . . . . . . . . . . Robots Rewired 16 | . . . . . 1 . . . 1 . . . . . 1 13 . . . . Allies Hacked 2 | . . . . . . . . . 2 . . . . . . . . . . . Hacks Repelled . | . . . . . . . . . . . . . . . . . . . . . Allies | -11 -10 -10 -10 -8 -7 -7 -7 -7 -6 -6 -6 -6 -6 -5 -5 -5 -5 -5 -5 -4 -------- Run | Yrd Mat Min Sub Mat Fac Low Low Zio Pro Fac Low Low Dat Pro Fac Ext Cet Arc Hub Fac Total Allies 41 | . . 3 . . 1 . . 3 1 . . . . 1 4 28 . . . . Largest Group 18 | . . 3 3 . 1 . . 3 3 . . . . 1 3 18 2 1 . . Highest-Rated Group 496 | . . 40 40 . 16 . . 62 95 . . . . 96 87 496 57 28 . . Highest-Rated Ally 159 | . . 16 16 . 16 . . 28 47 . . . . 96 29 159 31 28 . . Total Orders 18 | . . . . . . . . . . 8 . . . . 3 4 1 . . 2 FOLLOW 1 | . . . . . . . . . . 1 . . . . . . . . . . EXPLORE 1 | . . . . . . . . . . 1 . . . . . . . . . . RETURN 16 | . . . . . . . . . . 6 . . . . 3 4 1 . . 2 Ally Attacks 308 | . . . 30 . 8 . . . 27 . . . . 15 16 170 19 2 . 21 Total Damage 5665 | . . . 348 . 61 . . . 428 . . . . 646 234 3429 279 22 . 218 Kills 29 | . . . 2 . . . . . 3 . . . . 5 3 13 1 . . 2 Allies Corrupted 1 | . . . . . . . . . . . . . . . . 1 . . . . Allies Melted . | . . . . . . . . . . . . . . . . . . . . . Intel | -11 -10 -10 -10 -8 -7 -7 -7 -7 -6 -6 -6 -6 -6 -5 -5 -5 -5 -5 -5 -4 ------- Run | Yrd Mat Min Sub Mat Fac Low Low Zio Pro Fac Low Low Dat Pro Fac Ext Cet Arc Hub Fac Robot Analysis Total 2 | . 2 . . . . . . . . . . . . . . . . . . . Derelict Logs Recovered 11 | . . 2 2 . . . 1 2 . . 2 1 . 1 . . . . . . Drone Launches 20 | . . . . . . . . . . 6 . . . . 3 5 1 . . 5 Drone Recoveries 18 | . . . . . . . . . . 6 . . . . 3 5 1 . . 3 Decoded 0b10 Intel 143 | . . . . . . . . . . . . . . . 92 26 1 2 9 13 Traps 31 | . . . . . . . . . . . . . . . 7 10 . . 5 9 Emergency Access 18 | . . . . . . . . . . . . . . . 6 5 . . 3 4 Items 89 | . . . . . . . . . . . . . . . 79 10 . . . . Garrisons 1 | . . . . . . . . . . . . . . . . . . . 1 . Exits 4 | . . . . . . . . . . . . . . . . 1 1 2 . . Exploration | -11 -10 -10 -10 -8 -7 -7 -7 -7 -6 -6 -6 -6 -6 -5 -5 -5 -5 -5 -5 -4 ------------- Run | Yrd Mat Min Sub Mat Fac Low Low Zio Pro Fac Low Low Dat Pro Fac Ext Cet Arc Hub Fac Turns Passed 35796 | 129 2556 1276 7355 4090 1408 920 225 1985 1687 1115 2327 1232 170 3209 1257 1260 297 1374 373 1551 Spaces Moved 15050 | 77 833 585 2908 1355 819 518 157 1411 494 652 625 495 103 444 1045 795 136 507 389 702 Core 392 | 1 . . . . . . . . . . 95 . . 282 . . . 14 . . Treads 899 | . 1 . . . . . . . . . . 318 103 14 8 123 136 196 . . Legs 5082 | . . . . 520 819 518 157 1411 494 652 54 5 . . . . . . . 452 Wheels 5759 | 76 832 585 2908 835 . . . . . . 351 172 . . . . . . . . Hover 2758 | . . . . . . . . . . . . . . 113 1037 672 . 297 389 250 Flight 160 | . . . . . . . . . . . 125 . . 35 . . . . . . Fastest Speed 42 | 50 95 200 95 130 130 130 130 130 130 125 115 155 160 160 43 42 160 48 48 45 Average Speed 169 | 97 170 211 207 172 135 130 130 132 130 126 259 204 160 660 75 83 160 137 49 108 Slowest Speed 1050 | 100 480 215 395 235 200 130 130 200 130 130 900 320 160 1000 300 160 160 1050 102 260 Overloaded Moves 38 | . . . . . . . . . . . . . . . . . . . 38 . Propulsion Burnouts . | . . . . . . . . . . . . . . . . . . . . . Robots Hopped . | . . . . . . . . . . . . . . . . . . . . . Cave-ins Triggered . | . . . . . . . . . . . . . . . . . . . . . Exploration Rate (%) 58 | 5 99 98 95 78 23 57 32 86 55 20 57 64 74 61 26 80 68 79 57 14 Regions Visited 20 Branch Regions 14 Pre-discovered Areas 6 | . 1 . . . . . . 4 . . . . 1 . . . . . . . Known Exits Taken 15 | . . . . . 1 1 1 1 1 1 1 1 1 1 1 1 1 1 1 . Unknown Exits Taken 5 | 1 1 1 1 1 . . . . . . . . . . . . . . . . Scrap Searched 32 | . . 1 10 . . 1 1 3 1 . 3 9 . 3 . . . . . . Spaces Dug 97 | . . . 45 4 3 1 . . . 11 1 . . 16 9 . . . 7 . Terrain Destroyed 659 | . . 21 116 55 3 1 . . . 11 1 50 . 162 51 28 . 9 135 16 Melee 36 | . . . . 4 3 1 . . . 11 1 . . . 9 . . . 7 . Projectile 16 | . . . 2 1 . . . . . . . . . . . . . 3 1 9 AOE 601 | . . 21 114 50 . . . . . . . 50 . 162 42 28 . . 127 7 Terrain Rammed . | . . . . . . . . . . . . . . . . . . . . . Walls Destroyed . | . . . . . . . . . . . . . . . . . . . . . Machines Disabled . | . . . . . . . . . . . . . . . . . . . . . Actions | -11 -10 -10 -10 -8 -7 -7 -7 -7 -6 -6 -6 -6 -6 -5 -5 -5 -5 -5 -5 -4 --------- Run | Yrd Mat Min Sub Mat Fac Low Low Zio Pro Fac Low Low Dat Pro Fac Ext Cet Arc Hub Fac Total 23881 | 114 1794 622 4020 2909 1039 769 170 1531 1512 886 1281 689 108 687 1435 1314 188 1064 539 1210 Wait 6485 | 17 791 32 846 1274 102 230 . 82 982 129 580 130 1 178 202 233 16 351 108 201 Move 15030 | 76 832 584 2907 1354 818 517 156 1410 493 651 624 494 102 443 1044 794 135 506 388 702 Hop . | . . . . . . . . . . . . . . . . . . . . . Pick Up 279 | 6 33 1 49 47 17 7 2 12 2 15 5 11 1 7 14 11 2 18 4 15 Fast Attach 178 | 7 4 . 4 14 . 1 . 4 3 8 13 6 . 8 25 14 4 19 2 42 Attach 99 | . 6 . 10 12 9 . . . . 3 3 2 1 7 7 14 1 1 5 18 Detach 36 | . . . 1 9 . . . . . 1 . 2 . 3 1 8 1 . 3 7 Swap 222 | 1 10 1 41 28 13 3 2 7 4 19 10 9 1 8 18 7 4 15 3 18 Drop 287 | . 18 1 31 38 9 8 2 15 4 9 7 13 1 6 32 14 6 40 3 30 Fire 604 | 7 100 3 116 88 . . . . . 18 8 16 . 25 9 1 19 114 8 72 Melee 464 | . . . 14 29 71 3 8 1 24 33 31 6 1 2 62 59 . . 15 105 Ram . | . . . . . . . . . . . . . . . . . . . . . Kick . | . . . . . . . . . . . . . . . . . . . . . Crush . | . . . . . . . . . . . . . . . . . . . . . Escape Stasis 13 | . . . . . . . . . . . . . . . . 13 . . . . Rewire 146 | . . . . . . . . . . . . . . . . 146 . . . . Trap 38 | . . . 1 16 . . . . . . . . . . 21 . . . . . Miscellaneous . | . . . . . . . . . . . . . . . . . . . . . Route ------- -11/Scrapyard -10/Materials (discovered 6 exits: [*Mat x3] / [*Min x2] / *Sub) -10/Mines (discovered 3 exits: [*Mat x2] / *Sub) -10/Subcaves (discovered 3 exits: *Mat x2 / *Rec) -8/Materials (discovered 3 exits: *Fac x2 / Gar) -7/Factory (discovered 4 exits: *Sto x2 / *Low x2) -7/Lower Caves -7/Lower Caves -7/Zion -6/Proximity Caves -6/Factory (discovered 3 exits: Fac / *Low x2) -6/Lower Caves -6/Lower Caves (discovered 2 exits: *Fac / *Dat) -6/Data Miner -5/Proximity Caves -5/Factory (discovered 6 exits: *Fac x4 / Upp / *Ext) -5/Extension (discovered 3 exits: *Fac x2 / *Cet) -5/Cetus -5/Archives (discovered 3 exits: *Fac / *Hub x2) -5/Hub_04(d) (discovered 4 exits: *Fac x4) -4/Factory (discovered 2 exits: Upp x2) History --------- Turn | Location | Event 18 | -11/Scrapyard | Discovered new exit (range 16) 130 | -11/Scrapyard | Entered Materials 302 | -10/Materials | Build established: Mutant 357 | -10/Materials | Discovered new exit (range 13) 616 | -10/Materials | Discovered new exit (range 13) 1177 | -10/Materials | Discovered new exit (range 5) 1281 | -10/Materials | Discovered new exit (range 11) 2076 | -10/Materials | Core integrity fell below 50% 2180 | -10/Materials | Repaired Huge Storage Unit 2230 | -10/Materials | Discovered new exit (range 16) 2511 | -10/Materials | Discovered new exit (range 5) 2686 | -10/Materials | Entered Mines 2707 | -10/Mines | Met a Derelict bent on vengeance 2877 | -10/Mines | Received a Rocket Launcher from a helpful Derelict 3417 | -10/Mines | Discovered new exit (range 16) 3430 | -10/Mines | Learned Materials trap positions 3745 | -10/Mines | Discovered new exit (range 4) 3754 | -10/Mines | Assisted by bots powering up and referring to "LRC-V3" 3937 | -10/Mines | Discovered new exit (range 7) 3962 | -10/Mines | Entered Subcaves 3962 | -10/Subcaves | Accompanied by 3 allies 3978 | -10/Subcaves | Discovered new exit (range 12) 4183 | -10/Subcaves | Discovered new exit (range 12) 4715 | -10/Subcaves | Disturbed a concealed Subdweller 5038 | -10/Subcaves | Core integrity fell below 20% 5210 | -10/Subcaves | A Subdweller sparked back to life 5210 | -10/Subcaves | A Subdweller sparked back to life 5359 | -10/Subcaves | Found Prototype Leg 5517 | -10/Subcaves | Build established: Hauler-Mutant 6208 | -10/Subcaves | Visited 4L-MR0's lab 6216 | -10/Subcaves | Identified Cargo Legs 6228 | -10/Subcaves | Found Cargo Legs 6577 | -10/Subcaves | Shifting Twisted Machinery released Sub. Beam Cannon 6589 | -10/Subcaves | Shifting Twisted Machinery released Mak. Laser 6700 | -10/Subcaves | Identified exit to Recycling 7523 | -10/Subcaves | Shifting Twisted Machinery released Mak. Power Source 7530 | -10/Subcaves | Ambushed by Subdwellers from Twisted Machinery 9339 | -10/Subcaves | Ambushed by angry Subdweller bent on revenge 11317 | -10/Subcaves | Entered Materials 11317 | -8/Materials | Evolved 4 slots: Power x1, Propulsion x2, Weapon x1 11318 | -8/Materials | Loaded intel: 3 trap records 11617 | -8/Materials | Identified exit to Garrison 12094 | -8/Materials | Discovered new exit (range 13) 12326 | -8/Materials | Central database locked down 12423 | -8/Materials | Build established: Hauler-Gunner 13768 | -8/Materials | Discovered new exit (range 16) 14301 | -8/Materials | Attached Cargo Legs, gained temporary slots: Utility x2 14307 | -8/Materials | Attached Cargo Legs, gained temporary slots: Utility x2 14834 | -8/Materials | Build established: Hacker-Mutant 14978 | -8/Materials | Repaired Broken Lrn. Tractor Beam 15005 | -8/Materials | Repaired Humpback 15050 | -8/Materials | Repaired Mak. Light Armor Plating 15095 | -8/Materials | Repaired Mak. Axe 15317 | -8/Materials | First assault squad dispatched 15407 | -8/Materials | Entered Factory 15407 | -7/Factory | Evolved 2 slots: Utility x2 15408 | -7/Factory | Identified exit to Storage 15747 | -7/Factory | System Shield fried by hacking feedback 15784 | -7/Factory | Identified exit to Lower Caves 16150 | -7/Factory | Build established: Mutant 16815 | -7/Factory | Entered Lower Caves 16843 | -7/Lower Caves | Encountered a Warlord checkpoint 17104 | -7/Lower Caves | Build established: Assassin 17610 | -7/Lower Caves | Discovered new exit (range 6) 17623 | -7/Lower Caves | Identified exit to Lower Caves 17735 | -7/Lower Caves | Entered another Lower Caves area 17924 | -7/Lower Caves | Build established: Derelict-Assassin 17950 | -7/Lower Caves | Discovered new exit (range 8) 17952 | -7/Lower Caves | Learned location of 1 exit from Factory 17959 | -7/Lower Caves | Identified exit to Zion 17960 | -7/Lower Caves | Entered Zion 18040 | -7/Zion | System corruption cleaned by Quarantine Array 18088 | -7/Zion | Found Prototype Launcher 18088 | -7/Zion | Identified Gui. Missile Launcher 18116 | -7/Zion | Discovered new exit (range 14) 18121 | -7/Zion | Learned Factory stockpile data 18131 | -7/Zion | Identified exit to Proximity Caves 18320 | -7/Zion | Learned location of Quarantine (-2) 18397 | -7/Zion | Learned location of Data Miner (-6) 18547 | -7/Zion | Learned location of Armory (-3) 18648 | -7/Zion | Given the Hacking Drone Bay 18648 | -7/Zion | Found Prototype Device 18657 | -7/Zion | Identified Hacking Drone Bay 18865 | -7/Zion | Gained Derelict followers 19617 | -7/Zion | Found Prototype Hackware 19620 | -7/Zion | Found Prototype Processor 19623 | -7/Zion | Found Prototype Processor 19633 | -7/Zion | Found Prototype Processor 19638 | -7/Zion | Found Prototype Processor 19897 | -7/Zion | Build established: Gladiator 19945 | -7/Zion | Entered Proximity Caves 19945 | -6/Proximity Caves | Accompanied by 3 allies 20765 | -6/Proximity Caves | Received a Behemoth hack from an annoying Tinkerer 20810 | -6/Proximity Caves | Identified Exp. Signal Interpreter 20871 | -6/Proximity Caves | Identified Exp. Armor Integrity Analyzer 20935 | -6/Proximity Caves | Identified Exp. Targeting Computer 21033 | -6/Proximity Caves | Identified Exp. Melee Analysis Suite 21082 | -6/Proximity Caves | Identified Exp. System Shield 21615 | -6/Proximity Caves | Discovered new exit (range 15) 21630 | -6/Proximity Caves | Identified exit to Factory 21632 | -6/Proximity Caves | Entered Factory 21632 | -6/Factory | Evolved 2 slots: Utility x2 21633 | -6/Factory | Identified exit to Factory 21784 | -6/Factory | Spotted B-75 Beast 22047 | -6/Factory | Identified exit to Lower Caves 22592 | -6/Factory | Garrison activated, responded to threat 22747 | -6/Factory | Entered Lower Caves 22866 | -6/Lower Caves | Build established: Hacker-Mutant 23324 | -6/Lower Caves | Build established: Hacker-Assassin 23533 | -6/Lower Caves | Learned Factory stockpile data 23677 | -6/Lower Caves | Lost 5 parts (1p2n2u) 24202 | -6/Lower Caves | Encountered a Warlord checkpoint 24659 | -6/Lower Caves | Discovered new exit (range 12) 24707 | -6/Lower Caves | Learned 8 Factory zone layouts 24985 | -6/Lower Caves | Identified exit to Lower Caves 24999 | -6/Lower Caves | Found Alien Artifact 24999 | -6/Lower Caves | Identified Core Expander 24999 | -6/Lower Caves | Installed Core Expander, added new Power slot 25074 | -6/Lower Caves | Entered another Lower Caves area 25249 | -6/Lower Caves | Discovered exit to Factory (range 13) 25465 | -6/Lower Caves | Attracted the attention of an 0b10 checkpoint 25518 | -6/Lower Caves | Lost 4 parts (1p2n1u) 25783 | -6/Lower Caves | Build established: Hacker-Mutant 25835 | -6/Lower Caves | Learned 8 Factory zone layouts 26120 | -6/Lower Caves | Discovered new exit (range 9) 26304 | -6/Lower Caves | Identified exit to Data Miner 26306 | -6/Lower Caves | Entered Data Miner 26307 | -6/Data Miner | Discovered new exit (range 6) 26337 | -6/Data Miner | Met Data Miner 26358 | -6/Data Miner | Build established: Hacker-Gladiator 26394 | -6/Data Miner | Learned location of Section 7 (-2) 26394 | -6/Data Miner | Acquired the access code to Warlord's prototype stash 26417 | -6/Data Miner | Received God Mode back door access code from Data Miner 26473 | -6/Data Miner | Identified exit to Proximity Caves 26476 | -6/Data Miner | Entered Proximity Caves 26603 | -5/Proximity Caves | Attracted the attention of an 0b10 checkpoint 26630 | -5/Proximity Caves | Core integrity fell below 50% 26637 | -5/Proximity Caves | Escorted by Enhanced Grunt 26666 | -5/Proximity Caves | Lost 5 parts (3n1u1w) 29293 | -5/Proximity Caves | Lost 3 parts (2p1w) 29321 | -5/Proximity Caves | Found Prototype Device 29321 | -5/Proximity Caves | Identified Exp. Thermal Shield 29547 | -5/Proximity Caves | Discovered exit to Factory (range 6) 29685 | -5/Proximity Caves | Entered Factory 29685 | -5/Factory | Evolved 2 slots: Utility x2 29686 | -5/Factory | Identified exit to Factory 29686 | -5/Factory | Identified exit to Upper Caves 30209 | -5/Factory | Lost 3 allies 30224 | -5/Factory | Fabricated Combat Drone Bay? 30447 | -5/Factory | Found Rocket Array 30494 | -5/Factory | Build established: Derelict-Gladiator 30676 | -5/Factory | Discovered new exit (range 12) 30794 | -5/Factory | Repaired Gravmag Array 30942 | -5/Factory | Identified exit to Extension 30942 | -5/Factory | Entered Extension 30959 | -5/Extension | Rescued a captive Derelict 30964 | -5/Extension | Rescued a captive Derelict 30965 | -5/Extension | Rescued a captive Derelict 31018 | -5/Extension | Repaired Gravmag Array 31024 | -5/Extension | Rescued a captive Derelict 31035 | -5/Extension | Rescued a captive Derelict 31039 | -5/Extension | Rescued a captive Derelict 31181 | -5/Extension | Rescued A7 31204 | -5/Extension | Rescued a captive Derelict 31207 | -5/Extension | Build established: Hacker-Gladiator 31243 | -5/Extension | Spotted B-75 Beast 31253 | -5/Extension | Spotted B-75 Beast 31264 | -5/Extension | Extracted ID and sensor layout for unrecognized location from A7's data core 31269 | -5/Extension | Allies destroyed B-75 Beast 31291 | -5/Extension | Allies destroyed B-75 Beast 31292 | -5/Extension | Disrupted transfer network 31308 | -5/Extension | Lost 4 allies 31339 | -5/Extension | Rescued a captive Derelict 31349 | -5/Extension | Rescued a captive Derelict 31414 | -5/Extension | Lost 4 allies 31649 | -5/Extension | Rescued a captive Derelict 31654 | -5/Extension | Rescued a captive Derelict 31675 | -5/Extension | Rescued a captive Derelict 31680 | -5/Extension | Rescued a captive Derelict 31715 | -5/Extension | Rescued a captive Derelict 31806 | -5/Extension | Build established: Commander-Gladiator 31842 | -5/Extension | First assault squad dispatched 31908 | -5/Extension | Discovered exit to Factory (range 10) 31909 | -5/Extension | Discovered new exit (range 6) 31924 | -5/Extension | Lost 16 allies 31936 | -5/Extension | Destroyed 11 combat bots 31960 | -5/Extension | Identified exit to Cetus 32202 | -5/Extension | Entered Cetus 32202 | -5/Cetus | Accompanied by 2 allies 32224 | -5/Cetus | Spotted Cetus Guard 32224 | -5/Cetus | Spotted Cetus Guard 32228 | -5/Cetus | Spotted Cetus Guard 32235 | -5/Cetus | Destroyed Cetus Guard 32238 | -5/Cetus | Destroyed Cetus Guard 32243 | -5/Cetus | Destroyed Cetus Guard 32244 | -5/Cetus | Spotted Cetus Guard 32262 | -5/Cetus | Allies destroyed Cetus Guard 32435 | -5/Cetus | Identified exit to Archives 32448 | -5/Cetus | Cetus Manufacturing Module disabled 32499 | -5/Cetus | Entered Archives 32499 | -5/Archives | Accompanied by 1 ally 32569 | -5/Archives | Build established: Scavenger-Tank 32594 | -5/Archives | Identified exit to Hub_04(d) 32624 | -5/Archives | Discovered exit to Hub_04(d) (range 15) 33536 | -5/Archives | Build established: Scavenger-Mutant 33873 | -5/Archives | Entered Hub_04(d) 33902 | -5/Hub_04(d) | Build established: Wizard-Mutant 34073 | -5/Hub_04(d) | Core integrity fell below 50% 34134 | -5/Hub_04(d) | Network Hub disabled 34135 | -5/Hub_04(d) | Spotted Lightning 34135 | -5/Hub_04(d) | Spotted Lightning 34135 | -5/Hub_04(d) | Spotted Lightning 34144 | -5/Hub_04(d) | Spotted Lightning 34144 | -5/Hub_04(d) | Spotted Lightning 34145 | -5/Hub_04(d) | Spotted Lightning 34152 | -5/Hub_04(d) | Network Hub disabled 34173 | -5/Hub_04(d) | Search patrols dispatched 34209 | -5/Hub_04(d) | Network Hub disabled 34226 | -5/Hub_04(d) | Network Hub disabled 34240 | -5/Hub_04(d) | Lost 5 parts (1p1n3w) 34246 | -5/Hub_04(d) | Entered Factory 34246 | -4/Factory | Evolved 2 slots: Utility x2 34781 | -4/Factory | Build established: Scavenger-Gladiator 34968 | -4/Factory | Lost 6 parts (1p2n2u1w) 34969 | -4/Factory | Destroyed 8 combat bots 35115 | -4/Factory | Core integrity fell below 50% 35164 | -4/Factory | Lost 6 parts (1p2n3u) 35216 | -4/Factory | Found Exp. Signal Interpreter 35360 | -4/Factory | Repaired Centrium Medium Armor Plating 35382 | -4/Factory | Found Exp. System Shield 35496 | -4/Factory | First assault squad dispatched 35566 | -4/Factory | Identified exit to Upper Caves 35608 | -4/Factory | Lost 4 parts (1p1n2w) 35673 | -4/Factory | System corruption reached 10% 35679 | -4/Factory | System corruption reached 30% 35686 | -4/Factory | Destroyed 7 combat bots 35733 | -4/Factory | Lost 3 parts (2p1u) 35751 | -4/Factory | Core integrity fell below 20% 35797 | -4/Factory | Destroyed by P-70 Sage with Tesla Rifle Last Messages --------------- 35776_ Penetrated by Slug. 35776_ Slug penetrates K-01 Serf. 35776_ K-01 Serf destroyed. 35776_ Slug penetrates Wall. 35776_ Authchip [Weapon] destroyed. 35776_ K-01 Serf collects debris. 35777_ System corrupted: Heat flow error (+132). 35777_ K-01 Serf collects debris. 35779_ U-05 Engineer builds a Wall. 35779_ Penetrated by Slug. 35780_ U-05 Engineer builds a Door. 35782_ ALERT: Significant disruption in Zone 1U, assault force dispatched. 35782_ H-77 Assassin destroyed. 35785_ Acquired 80 matter. 35789_ Acquired Myomer Leg. 35793_ System corrupted: Energy discharge (-24). 35795_ K-01 Serf collects debris. [Achievement: Just Browsing] [Achievement: Achiever] Map ----- +----------------------------------------------------+ | ???# # #???"""?"""??????????????????????? | | ???# # + ???????????????????????????????? | | ???# # %# ?"""?"""??????????????????????? | | ???# # % # """?"""??????????????????????? | | ???# # #? """?"""??????????????????????? | | ???# # % #? ????????????????????????????? | | ???# # #?? ???????????????????????????? | | ???# # #??? ????????????????????????????? | | ???# # #????????????????????????????????? | | "??# + [#????????????????????????????????? | | "??# # !%%#????????????????????????????????? | | "??# # = |%#????????????????????????????????? | | ???######## [ ! ###############??????????????????? | | "??# = ??????????????????? | | "??# ??????????????????? | | " + = ??????????????????? | | # ?????????????????? | | ???# ??????????????????? | | ???# #######???????????????????? | | ???# #?????????????????????????? | | ? %= = #?????????????????????????? | | ? = %!= #?????????????????????????? | | =%== ##############????????????? | | ? %!%| # p #????????????? | | ? |*! # p #????????????? | | ??################ = [ # @ """ ""????????????????? | | ?????????# ???# [[ =# """" ""????????????????? | | ?????????#* # !^#[ """" ""????????????????? | | ?????????# + ![!#k*[""" ""????????????????? | | ?????????# """ # !=|%+ """" ""????????????????? | | ???????????""""" # [!=# """" "?????????????????? | | ???????????"""""?# * # """" "?????????????????? | | ????????????? ?####### ?????????????????? | | ?????????????"""???????# !?????????????????? | | "?"""??????"""""???????# ????????????????? | | "?"""??????"""""???????##########????????????????? | | "?"""????????????????????????????????????????????? | | "??""????????"""?????????????????????????????????? | | "??""??????"""""?????????????????????????????????? | | ???????????"""""?????????????????????????????????? | | ?????????????????????????????????????????????????? | | ??????????????????????""""???????????????????????? | | ??????????????????????""""???????????????????????? | | ??????????????????????""""???????????????????????? | | ??^???????????????????""""???????????????????????? | | ??????????????????????""""???????????????????????? | | ??????????????????????""""???????????????????????? | | ?????????????????????????????????????????????????? | | ?????????????????????????????????????????????????? | | ?????????????????????????????????????????????????? | +----------------------------------------------------+ Best States ------------- Heat Dissipation 81 Energy Generation 53 Energy Capacity 830 Matter Stores 700 Matter Capacity 700 Sight Range 16 Robot Scan Range 16 Terrain Scan Range 16 Terrain Scan Density 10 ECM Strength 1 Jamming Range 14 Additional Mass Support 9 EM Shielding 3 Armor Coverage 800 Resistance: TH 30 Core Shielding 30 Weapon Shielding 90 Melee Speed Boost 20 Evasion (%) 60 Melee Accuracy 13 Core Analysis 6 Recoil Reduction 4 Particle Charging 20 Offensive Hacking 48 Defensive Hacking 16 Authchip Count 4 Item Schematics ----------------- Cargo Storage Unit | -10/Materials | Hacked Huge Storage Unit | -10/Materials | Hacked Lrg. Storage Unit | -10/Materials | Hacked Hacking Suite | -8/Materials | Hacked Humpback | -8/Materials | Scanalyzed Mak. Axe | -8/Materials | Scanalyzed Lrn. Tractor Beam | -8/Materials | Scanalyzed Mak. Light Armor Plating | -8/Materials | Scanalyzed Mak. Laser | -8/Materials | Scanalyzed Imp. Weapon Shielding | -7/Factory | Scanalyzed Imp. Titanium Leg | -7/Factory | Scanalyzed Transmission Jammer | -7/Factory | Hacked Exp. System Shield | -6/Factory | Scanalyzed Exp. Armor Integrity Analyzer | -6/Factory | Scanalyzed 0b10 Decoder Chip [Scout] | -6/Factory | Scanalyzed Hrd. Medium Armor Plating | -6/Factory | Scanalyzed Exp. Melee Analysis Suite | -6/Factory | Scanalyzed Recalibrator | -6/Factory | Scanalyzed Imp. Cesium-ion Thruster | -6/Factory | Scanalyzed Imp. Field Recycling Unit | -6/Factory | Scanalyzed Hvy. Missile Launcher | -6/Factory | Scanalyzed Hyp. Gauss Rifle | -6/Factory | Scanalyzed Datajack | -6/Factory | Scanalyzed Centrium Wheel | -6/Data Miner | Free Imp. System Guard | -6/Data Miner | Free Hvy. Disruptor Cannon | -6/Data Miner | Free Imp. Coolant Injector | -6/Data Miner | Free Antimatter Reactor | -6/Data Miner | Free Mni. Smartbomb Launcher | -6/Data Miner | Free Prc. Energy Filter | -6/Data Miner | Free Cld. Nuclear Pulse Thruster | -6/Data Miner | Free Lgt. Regenerative Plating | -6/Data Miner | Free Combat Drone Bay | -6/Data Miner | Free Adv. Force Field | -5/Factory | Downloaded Cmb. Gravmag System | -5/Hub_04(d) | Hacked Prc. Matter Filter | -5/Hub_04(d) | Hacked Cmb. Antigrav System | -5/Hub_04(d) | Hacked Robot Schematics ------------------ M-13 Machinist | -10/Materials | Hacked O-16 Technician | -10/Materials | Hacked B-48 Gladiator | -6/Data Miner | Free A-15 Conveyor | -6/Data Miner | Free I-36 Angel | -6/Data Miner | Free X-72 Disruptor | -6/Data Miner | Free H-77 Assassin | -6/Data Miner | Free C-35 Carver | -6/Data Miner | Free Fabricated ------------ Combat Drone Bay | x1 | -5/Factory | Authchip Alien Tech Used ----------------- Core Expander Achievements -------------- 404 Achiever Alien Tech Decoder Ring GoHome() Hehehe Just Browsing Knowing Is Half The Battle Maximum Efficiency Oops Prison Break Universal Adapter Challenges ------------ None Game ------ Seed ProcessingAbsorptionBrace Manual? 0 Play Time 05:44:55 Cumulative 14.3 hours Start 2024.04.21 @ 11:29:43 End 2024.04.22 @ 18:07:13 Sessions 5 Manual Loads 0 Difficulty Rogue Special Mode None Game No. 8 Rogue 8 Adventurer 0 Explorer 0 Win Type - Total 0 Types 0/0/0/0/0/0/0/0/0 Lore% 15 Gallery% 29 Achievement% 26 Wizard Run 0 Options --------- Layout 1 ASCII 0 Keyboard 0 Movement Mouse Keybinds 0 Fullscreen 2 Font 24/Terminus Map View 50x35 Zoom Use 0% Tactical HUD 1 Map Filters NONE Filters NONE Steam 0 RUN: 8efc34f9-5058-4bbc-a1e0-015428da01b1